fUSD/lending_fUSD_20240220
["ID","MTS","AMOUNT","RATE_DAILY","PERIOD"]
[314520629,1708403433788,-487.0,0.00036438,2]
[314520630,1708403433798,-1256.22288882,0.00036442,7]
[314520631,1708403433807,-522.77462875,0.00036445,2]
[314520632,1708403433818,-177.58,0.00036448,2]
[314520633,1708403433828,-301.66433037,0.00036448,5]
[314520634,1708403433837,-162.53821336,0.0003645,9]
[314520635,1708403433848,-500.0,0.00036467,2]
[314520636,1708403433858,-892.37,0.00036467,2]
[314520637,1708403433869,-500.0,0.00036467,2]
[314520638,1708403433878,-500.0,0.00036467,2]
[314520639,1708403433889,-1603.31,0.00036467,2]
[314520640,1708403433898,-508.68,0.00036467,2]
[314520641,1708403433907,-304.01499009,0.00036467,2]
[314520642,1708403433916,-501.51,0.00036467,2]
[314520643,1708403433925,-500.0,0.00036467,2]
[314520644,1708403433935,-500.0,0.00036467,2]
[314520645,1708403433945,-550.68,0.00036467,2]
[314520646,1708403433955,-715.55,0.00036467,2]
[314520648,1708403433964,-500.0,0.00036467,2]
[314520650,1708403433973,-500.0,0.00036467,2]
[314520652,1708403433982,-500.0,0.00036467,2]
[314520654,1708403433991,-500.0,0.00036467,2]
[314520656,1708403434000,-500.0,0.00036467,2]
[314520658,1708403434009,-500.0,0.00036467,2]
[314520660,1708403434019,-513.29276498,0.00036467,2]
[314520662,1708403434028,-1966.6,0.00036467,2]
[314520664,1708403434037,-500.98,0.00036467,2]
[314520666,1708403434046,-599.91,0.00036467,2]
[314520668,1708403434055,-1120.15,0.00036467,2]
[314520670,1708403434066,-500.0,0.00036467,2]
[314520671,1708403434075,-500.0,0.00036467,2]
[314520672,1708403434084,-500.0,0.00036467,2]
[314520673,1708403434093,-517.22,0.00036467,2]
[314520674,1708403434102,-500.0,0.00036467,2]
[314520675,1708403434112,-492.0796928,0.00036467,2]
[314520676,1708403434121,-500.0,0.00036467,2]
[314520677,1708403434130,-500.0,0.00036467,2]
[314520678,1708403434140,-500.0,0.00036467,2]
[314520679,1708403434149,-500.0,0.00036467,2]
[314520680,1708403434158,-500.0,0.00036467,2]
[314520681,1708403434167,-500.0,0.00036467,2]
[314520682,1708403434176,-500.0,0.00036467,2]
[314520683,1708403434185,-500.0,0.00036467,2]
[314520684,1708403434195,-500.0,0.00036467,2]
[314520685,1708403434204,-500.0,0.00036467,2]
[314520686,1708403434215,-500.0,0.00036467,2]
[314520687,1708403434226,-500.0,0.00036467,2]
[314520688,1708403434235,-625.05,0.00036467,2]
[314520689,1708403434244,-500.0,0.00036467,2]
[314520690,1708403434254,-500.0,0.00036467,2]
[314520691,1708403434264,-500.0,0.00036467,2]
[314520692,1708403434273,-500.0,0.00036467,2]
[314520693,1708403434282,-500.0,0.00036467,2]
[314520694,1708403434292,-500.0,0.00036467,2]
[314520695,1708403434302,-500.0,0.00036467,2]
[314520696,1708403434312,-500.0,0.00036467,2]
[314520697,1708403434323,-500.0,0.00036467,2]
[314520698,1708403434332,-500.0,0.00036467,2]
[314520699,1708403434340,-570.94,0.00036467,2]
[314520700,1708403434349,-500.0,0.00036467,2]
[314520701,1708403434358,-500.0,0.00036467,2]
[314520702,1708403434367,-659.01,0.00036467,2]
[314520703,1708403434376,-500.0,0.00036467,2]
[314520704,1708403434386,-517.4,0.00036467,2]
[314520705,1708403434395,-516.86,0.00036467,2]
[314520706,1708403434405,-598.26,0.00036467,2]
[314520707,1708403434414,-500.0,0.00036467,2]
[314520708,1708403434423,-500.0,0.00036467,2]
[314520709,1708403434432,-500.0,0.00036467,2]
[314520710,1708403434442,-527.8,0.00036467,2]
[314520711,1708403434451,-1038.96,0.00036467,2]
[314520712,1708403434461,-757.76,0.00036467,2]
[314520713,1708403434470,-500.0,0.00036467,2]
[314520714,1708403434479,-500.0,0.00036467,2]
[314520715,1708403434489,-500.0,0.00036467,2]
[314520716,1708403434503,-500.0,0.00036467,2]
[314520717,1708403434736,-218.85,0.00036467,2]
[314520718,1708403434746,-580.38881273,0.00036467,2]
[314520719,1708403434755,-500.0,0.00036467,2]
[314520720,1708403434765,-569.18,0.00036467,2]
[314520721,1708403434774,-500.0,0.00036467,2]
[314520722,1708403434783,-500.0,0.00036467,2]
[314520723,1708403434793,-500.0,0.00036467,2]
[314520724,1708403434802,-500.0,0.00036467,2]
[314520725,1708403434811,-500.0,0.00036467,2]
[314520726,1708403434821,-500.0,0.00036467,2]
[314520727,1708403434830,-500.0,0.00036467,2]
[314520728,1708403434839,-507.48731449,0.00036467,2]
[314520729,1708403434849,-500.0,0.00036467,2]
[314520730,1708403434858,-852.86,0.00036467,2]
[314520731,1708403434872,-743.62,0.00036467,2]
[314520732,1708403434881,-544.48,0.00036467,2]
[314520733,1708403434891,-506.88,0.00036467,2]
[314520734,1708403434900,-500.0,0.00036467,2]
[314520735,1708403434909,-741.32,0.00036467,2]
[314520736,1708403434919,-500.0,0.00036467,2]
[314520737,1708403434928,-775.36,0.00036467,2]
[314520738,1708403434938,-500.0,0.00036467,2]
[314520739,1708403434949,-500.0,0.00036467,2]
[314520740,1708403434958,-500.0,0.00036467,2]
[314520741,1708403434967,-1513.71,0.00036467,2]
[314520742,1708403434977,-500.0,0.00036467,2]
[314520743,1708403434987,-500.0,0.00036467,2]
[314520744,1708403434996,-500.0,0.00036467,2]
[314520745,1708403435006,-797.99,0.00036467,2]
[314520746,1708403435016,-500.0,0.00036467,2]
[314520747,1708403435026,-1898.64,0.00036467,2]
[314520748,1708403435035,-500.0,0.00036467,2]
[314520749,1708403435044,-500.0,0.00036467,2]
[314520750,1708403435054,-652.68,0.00036467,2]
[314520751,1708403435064,-500.0,0.00036467,2]
[314520752,1708403435074,-500.0,0.00036467,2]
[314520753,1708403435083,-929.76,0.00036467,2]
[314520754,1708403435093,-802.31,0.00036467,2]
[314520755,1708403435102,-500.0,0.00036467,2]
[314520756,1708403435112,-1071.35,0.00036467,2]
[314520757,1708403435121,-500.0,0.00036467,2]
[314520758,1708403435131,-502.18,0.00036467,2]
[314520759,1708403435140,-500.0,0.00036467,2]
[314520760,1708403435149,-353.59424337,0.00036467,2]
[314520761,1708403435677,-499.99,0.00034342,2]
[314520762,1708403435687,-146.40575663,0.00036467,2]
[314520763,1708403435697,-500.0,0.00036467,2]
[314520764,1708403435706,-608.91,0.00036467,2]
[314520765,1708403435717,-49.69424337,0.00036467,2]
[314520766,1708403436423,-234.06410997,0.00036349,2]
[314520767,1708403436433,-198.07982164,0.00036467,2]
[314520768,1708403436442,-389.88525215,0.00036467,2]
[314520769,1708403436452,-4589.11,0.00036467,2]
[314520770,1708403436463,-500.0,0.00036467,2]
[314520771,1708403436473,-500.0,0.00036467,2]
[314520772,1708403436483,-518.49523631,0.00036467,2]
[314520773,1708403436493,-529.13953568,0.00036467,2]
[314520774,1708403436503,-1448.17,0.00036467,2]
[314520775,1708403436512,-500.29,0.00036467,2]
[314520776,1708403436523,-976.43,0.00036467,2]
[314520777,1708403436534,-500.0,0.00036467,2]
[314520778,1708403436544,-730.96,0.00036467,2]
[314520779,1708403436553,-500.0,0.00036467,2]
[314520780,1708403436563,-138.2294371,0.00036467,2]
[314520781,1708403436581,-1461.5805629,0.00036467,2]
[314520782,1708403436590,-500.0,0.00036467,2]
[314520783,1708403436599,-86.66697457,0.00036467,2]
[314520784,1708403436615,-1423.12302543,0.00036467,2]
[314520785,1708403436625,-263.99206364,0.00036467,2]
[314520786,1708403436757,-872.04697899,0.00036467,2]
[314520787,1708403436783,-420.00095737,0.00036467,2]
[314520788,1708403436793,-138.99131984,0.00036467,2]
[314520805,1708403438377,-211.67487649,0.00036358,3]
[314520807,1708403438387,-361.00868016,0.00036467,2]
[314520809,1708403438396,-500.0,0.00036467,2]
[314520811,1708403438406,-500.0,0.00036467,2]
[314520813,1708403438416,-500.0,0.00036467,2]
[314520815,1708403438426,-2410.89,0.00036467,2]
[314520817,1708403438435,-673.55,0.00036467,2]
[314520819,1708403438444,-500.0,0.00036467,2]
[314520821,1708403438453,-500.0,0.00036467,2]
[314520823,1708403438462,-503.43542096,0.00036467,2]
[314520825,1708403438471,-500.0,0.00036467,2]
[314520827,1708403438481,-7160.47,0.00036467,2]
[314520829,1708403438490,-500.0,0.00036467,2]
[314520831,1708403438499,-4733.62304005,0.00036467,7]
[314520845,1708403438634,-134.71292067,0.00036467,7]
[314520848,1708403438646,-578.96509772,0.00036467,7]
[314520874,1708403438888,-10451.08925294,0.00036467,7]
[314520876,1708403438897,-155.1366059,0.00036467,4]
[314520878,1708403438907,-517.90625289,0.00036468,2]
[314520880,1708403438916,-500.0,0.00036468,2]
[314520882,1708403438925,-500.0,0.00036468,2]
[314520884,1708403438934,-500.0,0.00036468,2]
[314520886,1708403438945,-503.42913307,0.00036468,2]
[314520888,1708403438954,-500.0,0.00036468,2]
[314520890,1708403438964,-500.0,0.00036468,2]
[314520892,1708403438973,-523.1282307,0.00036468,2]
[314520894,1708403438983,-532.47728935,0.00036468,2]
[314520896,1708403438992,-500.0,0.00036468,2]
[314520898,1708403439001,-500.0,0.00036468,2]
[314520900,1708403439011,-500.0,0.00036468,2]
[314520902,1708403439020,-253.11472471,0.00036468,2]
[314520904,1708403439029,-500.0,0.00036468,2]
[314520906,1708403439038,-500.0,0.00036468,2]
[314520908,1708403439048,-500.0,0.00036468,2]
[314520910,1708403439057,-314.71198551,0.00036468,30]
[314520912,1708403439067,-500.0,0.00036468,2]
[314520914,1708403439077,-196.04328468,0.00036468,2]
[314520916,1708403439086,-500.0,0.00036468,2]
[314520918,1708403439096,-500.0,0.00036468,2]
[314520920,1708403439105,-500.0,0.00036468,2]
[314520922,1708403439114,-509.78315379,0.00036468,2]
[314520924,1708403439123,-500.0,0.00036468,2]
[314520926,1708403439132,-500.0,0.00036468,2]
[314520928,1708403439141,-500.0,0.00036468,2]
[314520930,1708403439150,-500.0,0.00036468,2]
[314520932,1708403439159,-500.0,0.00036468,2]
[314520934,1708403439168,-500.0,0.00036468,2]
[314520936,1708403439178,-500.0,0.00036468,2]
[314520937,1708403439187,-500.0,0.00036468,2]
[314520939,1708403439196,-500.0,0.00036468,2]
[314520941,1708403439205,-500.0,0.00036468,2]
[314520943,1708403439218,-500.0,0.00036468,2]
[314520945,1708403439227,-500.0,0.00036468,2]
[314520947,1708403439236,-500.0,0.00036468,2]
[314520949,1708403439245,-500.0,0.00036468,2]
[314520951,1708403439255,-500.0,0.00036468,2]
[314520953,1708403439264,-500.0,0.00036468,2]
[314520955,1708403439273,-500.0,0.00036468,2]
[314520957,1708403439283,-500.0,0.00036468,2]
[314520958,1708403439294,-296.87170866,0.00036468,2]
[314520959,1708403439303,-500.0,0.00036468,2]
[314520960,1708403439312,-500.0,0.00036468,2]
[314520961,1708403439322,-500.0,0.00036468,2]
[314520962,1708403439331,-500.0,0.00036468,2]
[314520963,1708403439340,-500.0,0.00036468,2]
[314520964,1708403439349,-594.15731288,0.00036468,2]
[314520965,1708403439357,-500.0,0.00036468,2]
[314520966,1708403439367,-500.0,0.00036468,2]
[314520967,1708403439376,-500.0,0.00036468,2]
[314520968,1708403439385,-500.0,0.00036468,2]
[314520969,1708403439394,-500.0,0.00036468,2]
[314520970,1708403439402,-205.1032189,0.00036468,2]
[314520971,1708403439411,-500.0,0.00036468,2]
[314520972,1708403439420,-500.0,0.00036468,2]
[314520973,1708403439428,-527.81715002,0.00036468,2]
[314520974,1708403439437,-500.0,0.00036468,2]
[314520976,1708403439446,-500.0,0.00036468,2]
[314520978,1708403439458,-500.0,0.00036468,2]
[314520980,1708403439467,-500.0,0.00036468,2]
[314520982,1708403439475,-500.0,0.00036468,2]
[314520984,1708403439484,-500.0,0.00036468,2]
[314520986,1708403439493,-500.0,0.00036468,2]
[314520988,1708403439502,-489.37702444,0.00036468,2]
[314520990,1708403439511,-500.0,0.00036468,2]
[314520992,1708403439520,-500.0,0.00036468,2]
[314520994,1708403439529,-500.0,0.00036468,2]
[314520996,1708403439539,-536.44431768,0.00036468,2]
[314520998,1708403439548,-500.0,0.00036468,2]
[314521000,1708403439556,-500.0,0.00036468,2]
[314521002,1708403439566,-500.0,0.00036468,2]
[314521004,1708403439578,-500.0,0.00036468,2]
[314521007,1708403439587,-500.0,0.00036468,2]
[314521009,1708403439597,-500.0,0.00036468,2]
[314521010,1708403439606,-500.0,0.00036468,2]
[314521013,1708403439615,-506.53806495,0.00036468,2]
[314521014,1708403439624,-500.0,0.00036468,2]
[314521016,1708403439633,-508.90506476,0.00036468,2]
[314521018,1708403439642,-500.0,0.00036468,2]
[314521020,1708403439651,-500.0,0.00036468,2]
[314521022,1708403439660,-519.0368817,0.00036468,2]
[314521024,1708403439669,-500.0,0.00036468,2]
[314521026,1708403439680,-579.61452695,0.00036468,2]
[314521029,1708403439689,-500.0,0.00036468,2]
[314521031,1708403439698,-500.0,0.00036468,2]
[314521032,1708403439707,-500.0,0.00036468,2]
[314521034,1708403439716,-510.00264295,0.00036468,2]
[314521036,1708403439726,-500.0,0.00036468,2]
[314521039,1708403439735,-513.27250882,0.00036468,2]
[314521041,1708403439745,-500.0,0.00036468,2]
[314521042,1708403439754,-511.0334496,0.00036468,2]
[314521044,1708403439764,-500.0,0.00036468,2]
[314521046,1708403439773,-500.0,0.00036468,2]
[314521048,1708403439782,-500.0,0.00036468,2]
[314521050,1708403439792,-500.0,0.00036468,2]
[314521052,1708403439801,-500.0,0.00036468,2]
[314521054,1708403439810,-500.0,0.00036468,2]
[314521056,1708403439819,-500.0,0.00036468,2]
[314521058,1708403439828,-507.26667316,0.00036468,2]
[314521061,1708403439838,-500.0,0.00036468,2]
[314521062,1708403439847,-500.0,0.00036468,2]
[314521064,1708403439857,-500.0,0.00036468,2]
[314521067,1708403439866,-514.76098614,0.00036468,2]
[314521069,1708403439875,-584.57,0.00036468,2]
[314521070,1708403439884,-500.0,0.00036468,2]
[314521072,1708403439894,-500.0,0.00036468,2]
[314521075,1708403439903,-500.0,0.00036468,2]
[314521076,1708403439912,-500.0,0.00036468,2]
[314521078,1708403439921,-500.0,0.00036468,2]
[314521080,1708403439931,-500.0,0.00036468,2]
[314521082,1708403439940,-514.37677287,0.00036468,2]
[314521084,1708403439949,-500.0,0.00036468,2]
[314521086,1708403439958,-500.0,0.00036468,2]
[314521088,1708403439967,-500.0,0.00036468,2]
[314521090,1708403439976,-500.0,0.00036468,2]
[314521093,1708403439985,-515.69172669,0.00036468,2]
[314521095,1708403439995,-500.0,0.00036468,2]
[314521097,1708403440004,-500.0,0.00036468,2]
[314521099,1708403440014,-500.0,0.00036468,2]
[314521101,1708403440023,-500.0,0.00036468,2]
[314521103,1708403440032,-505.43691782,0.00036468,2]
[314521105,1708403440041,-500.0,0.00036468,2]
[314521107,1708403440050,-500.0,0.00036468,2]
[314521109,1708403440059,-500.0,0.00036468,2]
[314521112,1708403440069,-637.66,0.00036468,2]
[314521113,1708403440078,-500.0,0.00036468,2]
[314521115,1708403440088,-500.0,0.00036468,2]
[314521118,1708403440097,-504.39010613,0.00036468,2]
[314521119,1708403440106,-510.57220344,0.00036468,2]
[314521121,1708403440115,-500.0,0.00036468,2]
[314521123,1708403440124,-500.0,0.00036468,2]
[314521125,1708403440134,-500.0,0.00036468,2]
[314521127,1708403440143,-500.0,0.00036468,2]
[314521129,1708403440152,-500.0,0.00036468,2]
[314521131,1708403440162,-500.0,0.00036468,2]
[314521134,1708403440171,-500.0,0.00036468,2]
[314521136,1708403440180,-500.0,0.00036468,2]
[314521139,1708403440190,-500.0,0.00036468,2]
[314521141,1708403440201,-500.0,0.00036468,2]
[314521143,1708403440211,-500.0,0.00036468,2]
[314521145,1708403440222,-513.12849855,0.00036468,2]
[314521146,1708403440231,-500.0,0.00036468,2]
[314521149,1708403440241,-511.33749481,0.00036468,2]
[314521151,1708403440251,-500.0,0.00036468,2]
[314521153,1708403440262,-500.0,0.00036468,2]
[314521155,1708403440272,-500.0,0.00036468,2]
[314521157,1708403440281,-500.0,0.00036468,2]
[314521159,1708403440290,-500.0,0.00036468,2]
[314521161,1708403440302,-500.0,0.00036468,2]
[314521163,1708403440312,-500.0,0.00036468,2]
[314521165,1708403440321,-486.92653091,0.00036468,2]
[314521167,1708403440330,-500.0,0.00036468,2]
[314521169,1708403440339,-511.79112103,0.00036468,2]
[314521171,1708403440348,-500.0,0.00036468,2]
[314521173,1708403440357,-500.0,0.00036468,2]
[314521175,1708403440366,-500.0,0.00036468,2]
[314521177,1708403440375,-500.0,0.00036468,2]
[314521179,1708403440383,-500.0,0.00036468,2]
[314521181,1708403440392,-500.0,0.00036468,2]
[314521183,1708403440401,-500.0,0.00036468,2]
[314521184,1708403440410,-500.0,0.00036468,2]
[314521187,1708403440420,-543.34568419,0.00036468,2]
[314521189,1708403440429,-519.75069799,0.00036468,2]
[314521191,1708403440438,-500.0,0.00036468,2]
[314521193,1708403440447,-500.0,0.00036468,2]
[314521194,1708403440456,-500.0,0.00036468,2]
[314521197,1708403440465,-500.0,0.00036468,2]
[314521198,1708403440474,-500.0,0.00036468,2]
[314521201,1708403440483,-529.27753168,0.00036468,2]
[314521202,1708403440493,-500.0,0.00036468,2]
[314521205,1708403440502,-500.0,0.00036468,2]
[314521207,1708403440511,-500.0,0.00036468,2]
[314521209,1708403440520,-500.0,0.00036468,2]
[314521211,1708403440529,-500.0,0.00036468,2]
[314521213,1708403440538,-500.0,0.00036468,2]
[314521214,1708403440547,-500.0,0.00036468,2]
[314521217,1708403440556,-500.0,0.00036468,2]
[314521218,1708403440565,-510.94117198,0.00036468,2]
[314521221,1708403440575,-500.0,0.00036468,2]
[314521223,1708403440584,-500.0,0.00036468,2]
[314521225,1708403440593,-500.0,0.00036468,2]
[314521227,1708403440603,-500.0,0.00036468,2]
[314521229,1708403440612,-500.0,0.00036468,2]
[314521231,1708403440621,-403.28,0.00036468,2]
[314521233,1708403440630,-500.0,0.00036468,2]
[314521234,1708403440640,-500.0,0.00036468,2]
[314521237,1708403440650,-500.0,0.00036468,2]
[314521239,1708403440659,-514.60110992,0.00036468,2]
[314521241,1708403440669,-500.0,0.00036468,2]
[314521243,1708403440678,-500.0,0.00036468,2]
[314521245,1708403440687,-500.0,0.00036468,2]
[314521247,1708403440697,-500.0,0.00036468,2]
[314521249,1708403440705,-1000.0,0.00036468,2]
[314521251,1708403440714,-515.67832058,0.00036468,2]
[314521253,1708403440723,-581.21,0.00036468,2]
[314521255,1708403440732,-500.0,0.00036468,2]
[314521257,1708403440742,-500.0,0.00036468,2]
[314521259,1708403440752,-500.0,0.00036468,2]
[314521261,1708403440761,-585.04916382,0.00036468,2]
[314521263,1708403440771,-500.0,0.00036468,2]
[314521265,1708403440781,-500.0,0.00036468,2]
[314521267,1708403440793,-500.0,0.00036468,2]
[314521269,1708403440803,-500.0,0.00036468,2]
[314521271,1708403440813,-500.0,0.00036468,2]
[314521273,1708403440824,-500.0,0.00036468,2]
[314521275,1708403440833,-284.83358293,0.00036468,2]
[314521277,1708403440846,-500.0,0.00036468,2]
[314521279,1708403440855,-500.0,0.00036468,2]
[314521281,1708403440865,-500.0,0.00036468,2]
[314521283,1708403440875,-522.94490117,0.00036468,2]
[314521285,1708403440885,-500.0,0.00036468,2]
[314521287,1708403440895,-500.0,0.00036468,2]
[314521289,1708403440904,-214.38409169,0.00036468,2]
[314521291,1708403440914,-1335.78,0.00036468,2]
[314521293,1708403440924,-509.69867716,0.00036468,2]
[314521295,1708403440933,-292.09203214,0.00036468,2]
[314521297,1708403440943,-500.0,0.00036468,2]
[314521299,1708403440952,-1600.12,0.00036468,2]
[314521301,1708403440961,-500.0,0.00036468,2]
[314521303,1708403440970,-500.0,0.00036468,2]
[314521305,1708403440980,-529.38343836,0.00036468,2]
[314521307,1708403440990,-500.0,0.00036468,2]
[314521309,1708403440999,-527.22750374,0.00036468,2]
[314521311,1708403441008,-508.28722083,0.00036468,2]
[314521313,1708403441018,-500.0,0.00036468,2]
[314521315,1708403441027,-500.0,0.00036468,2]
[314521317,1708403441035,-500.0,0.00036468,2]
[314521336,1708403441045,-572.76480413,0.00036468,2]
[314521340,1708403441234,-500.0,0.00036468,2]
[314521342,1708403441243,-1418.19,0.00036468,2]
[314521344,1708403441252,-1041.82,0.00036468,2]
[314521346,1708403441262,-536.64,0.00036468,2]
[314521348,1708403441272,-500.0,0.00036468,2]
[314521350,1708403441282,-2533.02,0.00036468,2]
[314521352,1708403441291,-500.0,0.00036468,2]
[314521354,1708403441302,-500.0,0.00036468,2]
[314521356,1708403441311,-500.0,0.00036468,2]
[314521358,1708403441321,-500.0,0.00036468,2]
[314521360,1708403441330,-2313.37,0.00036468,2]
[314521362,1708403441339,-500.0,0.00036468,2]
[314521364,1708403441349,-961.88,0.00036468,2]
[314521366,1708403441359,-500.0,0.00036468,2]
[314521368,1708403441368,-500.0,0.00036468,2]
[314521370,1708403441378,-1329.79,0.00036468,2]
[314521372,1708403441387,-500.0,0.00036468,2]
[314521374,1708403441396,-2538.91,0.00036468,2]
[314521376,1708403441407,-1769.85,0.00036468,2]
[314521378,1708403441416,-1424.5,0.00036468,2]
[314521380,1708403441425,-500.0,0.00036468,2]
[314521382,1708403441434,-520.71580494,0.00036468,2]
[314521384,1708403441444,-1931.79,0.00036468,2]
[314521386,1708403441452,-500.0,0.00036468,2]
[314521388,1708403441462,-500.0,0.00036468,2]
[314521390,1708403441472,-500.0,0.00036468,2]
[314521392,1708403441481,-500.0,0.00036468,2]
[314521394,1708403441491,-210.33077814,0.00036468,2]
[314521396,1708403441500,-500.0,0.00036468,2]
[314521398,1708403441508,-1511.25,0.00036468,2]
[314521400,1708403441519,-500.0,0.00036468,2]
[314521402,1708403441528,-505.40219873,0.00036468,2]
[314521404,1708403441537,-500.0,0.00036468,2]
[314521406,1708403441546,-500.0,0.00036468,2]
[314521408,1708403441555,-500.0,0.00036468,2]
[314521410,1708403441564,-500.0,0.00036468,2]
[314521412,1708403441575,-500.0,0.00036468,2]
[314521415,1708403441585,-500.0,0.00036468,2]
[314521416,1708403441595,-1348.75,0.00036468,2]
[314521419,1708403441605,-500.0,0.00036468,2]
[314521420,1708403441614,-564.04,0.00036468,2]
[314521422,1708403441624,-500.0,0.00036468,2]
[314521425,1708403441633,-1004.6914929,0.00036468,2]
[314521427,1708403441642,-500.0,0.00036468,2]
[314521429,1708403441651,-685.96,0.00036468,2]
[314521430,1708403441660,-886.68,0.00036468,2]
[314521432,1708403441670,-500.0,0.00036468,2]
[314521435,1708403441680,-500.0,0.00036468,2]
[314521437,1708403441689,-500.0,0.00036468,2]
[314521438,1708403441698,-500.0,0.00036468,2]
[314521441,1708403441708,-5459.16,0.00036468,2]
[314521442,1708403441716,-510.6489506,0.00036468,2]
[314521444,1708403441725,-500.0,0.00036468,2]
[314521446,1708403441735,-500.0,0.00036468,2]
[314521448,1708403441744,-500.0,0.00036468,2]
[314521451,1708403441753,-500.0,0.00036468,2]
[314521453,1708403441762,-500.0,0.00036468,2]
[314521454,1708403441771,-500.0,0.00036468,2]
[314521457,1708403441781,-3961.58,0.00036468,2]
[314521458,1708403441790,-502.06988355,0.00036468,2]
[314521460,1708403441799,-500.0,0.00036468,2]
[314521462,1708403441808,-2585.15,0.00036468,2]
[314521464,1708403441817,-482.38206888,0.00036468,2]
[314521466,1708403441829,-500.0,0.00036468,2]
[314521468,1708403441838,-500.0,0.00036468,2]
[314521470,1708403441847,-898.34,0.00036468,2]
[314521472,1708403441857,-500.0,0.00036468,2]
[314521474,1708403441866,-1002.34,0.00036468,2]
[314521476,1708403441875,-500.0,0.00036468,2]
[314521478,1708403441884,-1000.91,0.00036468,2]
[314521480,1708403441894,-218.21807225,0.00036468,2]
[314521482,1708403441903,-1000.0,0.00036468,7]
[314521484,1708403441913,-500.0,0.00036468,2]
[314521486,1708403441922,-500.0,0.00036468,2]
[314521488,1708403441931,-531.54401828,0.00036468,2]
[314521490,1708403441940,-500.0,0.00036468,2]
[314521492,1708403441950,-1981.84,0.00036468,2]
[314521494,1708403441960,-500.0,0.00036468,2]
[314521496,1708403441969,-500.0,0.00036468,2]
[314521498,1708403441978,-565.28602187,0.00036468,2]
[314521500,1708403441988,-512.68399316,0.00036468,2]
[314521502,1708403441998,-500.0,0.00036468,2]
[314521504,1708403442007,-500.0,0.00036468,2]
[314521507,1708403442016,-1700.93,0.00036468,2]
[314521508,1708403442025,-500.0,0.00036468,2]
[314521511,1708403442035,-506.01296923,0.00036468,2]
[314521513,1708403442044,-500.0,0.00036468,2]
[314521514,1708403442054,-548.03353086,0.00036468,2]
[314521516,1708403442064,-500.0,0.00036468,2]
[314521519,1708403442073,-500.0,0.00036468,2]
[314521521,1708403442083,-500.0,0.00036468,2]
[314521522,1708403442092,-1117.07,0.00036468,2]
[314521524,1708403442102,-530.92944891,0.00036468,2]
[314521526,1708403442112,-500.0,0.00036468,2]
[314521529,1708403442121,-500.0,0.00036468,2]
[314521531,1708403442131,-544.62060648,0.00036468,2]
[314521532,1708403442140,-2603.54,0.00036468,2]
[314521535,1708403442149,-500.0,0.00036468,2]
[314521536,1708403442159,-500.0,0.00036468,2]
[314521538,1708403442168,-541.08868424,0.00036468,2]
[314521541,1708403442177,-525.03005757,0.00036468,2]
[314521543,1708403442187,-500.0,0.00036468,2]
[314521544,1708403442196,-500.0,0.00036468,2]
[314521547,1708403442206,-526.60684737,0.00036468,2]
[314521548,1708403442216,-509.15115161,0.00036468,2]